Cogmind - Beta 10.2 @@@ ROGUE MODE // 2022.02.19 @ 02:41:55 Player: woegarden Result: Destroyed by DAS Turret with DAS Cannon Performance ------------- Evolutions (1) 500 Regions Visited (4) 800 Robots Destroyed (18) 90 Value Destroyed (334) 334 Prototype IDs (0) 0 Alien Tech Used (0) 0 Bonus (-63) -63 TOTAL SCORE: 1661 Bonus ------- Friendly Fire -63 Cogmind --------- Core Integrity 0/400 Matter 300/300 Energy 100/100 System Corruption 4% Temperature Cool (40) Movement Core (550) Ox10 Location -9/Exiles Parts ------- > --- POWER (1) -------- (None) > --- PROPULSION (3) --- (None) > --- UTILITY (2) ------ High-capacity Storage Unit > --- WEAPON (3) ------- (None) > --- INVENTORY (12) --- Aluminum Leg Aluminum Leg Improved Heat Sink Small Storage Unit High-capacity Storage Unit High-capacity Battery (400) High-capacity Matter Pod (175) Peak State ------------ > --- POWER ------------ Ion Engine > --- PROPULSION ------- Light Treads Light Treads Light Treads > --- UTILITY ---------- Small Storage Unit Improved Medium Armor Plating > --- WEAPON ----------- Autogun Heavy Rocket Launcher Hammer > --- INVENTORY -------- Gravmag System Improved Heat Sink High-capacity Battery Structural Scanner Terrain Scanner [Rating: 17] Favorites ----------- Power Light Ion Engine Engine Light Ion Engine Propulsion Light Treads Treads Light Treads Leg Aluminum Leg Wheel Armored Wheel Hover Unit Gravmag System Utility Small Storage Unit Storage Small Storage Unit Protection Improved Medium Armor Plating Weapon Heavy Rocket Launcher Energy Cannon Light EM Pulse Cannon Ballistic Gun Light Assault Rifle Launcher Heavy Rocket Launcher Impact Weapon Hammer Build | -11 -10 -9 -9 -9 ------- Run | Scr Mat Mat Min Exi Slots Evolved 2 | . . 2 . . Power . | . . . . . Propulsion 1 | . . 1 . . Utility . | . . . . . Weapon 1 | . . 1 . . Parts Attached 25 | 7 . 7 10 1 Power 3 | 1 . 1 1 . Engine 3 | 1 . 1 1 . Core . | . . . . . Reactor . | . . . . . Propulsion 11 | 3 . 4 4 . Treads 4 | 1 . . 3 . Leg 5 | 2 . 3 . . Wheel 1 | . . 1 . . Hover 1 | . . . 1 . Flight . | . . . . . Utility 3 | 1 . . 1 1 Device . | . . . . . Storage 2 | 1 . . . 1 Processor . | . . . . . Hackware . | . . . . . Protection 1 | . . . 1 . Artifact . | . . . . . Weapon 8 | 2 . 2 4 . Energy Gun . | . . . . . Energy Cannon 1 | . . 1 . . Ballistic Gun 5 | 2 . 1 2 . Ballistic Cannon . | . . . . . Launcher 1 | . . . 1 . Special Weapon . | . . . . . Impact Weapon 1 | . . . 1 . Slashing Weapon . | . . . . . Piercing Weapon . | . . . . . Special Melee Weapon . | . . . . . Unidentified Prototypes . | . . . . . Parts Lost 18 | . . 9 1 8 Power 3 | . . 2 . 1 Propulsion 6 | . . 3 . 3 Utility 1 | . . . . 1 Weapon 8 | . . 4 1 3 Highest Loss Streak 8 | . . 7 1 8 Average Slot Usage (%) 71 | . 85 41 71 98 Engine 8 | . 14 5 4 11 Treads 12 | . . . 23 32 Leg 11 | . 28 16 . . Storage 11 | . 14 11 11 11 Protection 4 | . . . 9 10 Ballistic Gun 12 | . 28 6 7 11 Launcher 4 | . . . 9 10 Impact Weapon 3 | . . . 4 11 Naked Turns . | . . . . . Heaviest Build 56 | 10 10 10 28 56 Greatest Support 60 | 20 20 30 60 60 Greatest Overweight (x) 10 | . . 1 1 10 Average Overweight (x) . | . . . . . Largest Inventory Capacity 12 | 6 6 6 6 12 Average Capacity 6 | 5 6 6 6 7 Most Carried 7 | 4 4 6 6 7 Average Carried 4 | 2 3 4 4 5 Final Capacity 12 | 6 6 6 6 12 Final Carried 7 | 3 4 6 4 7 Class Distribution -------------------- 100% | Mutant Dominant Class ---------------- Mutant | -10/Materials Mutant | -9/Materials Mutant | -9/Mines Mutant | -9/Exiles Resources | -11 -10 -9 -9 -9 ----------- Run | Scr Mat Mat Min Exi Matter Collected 667 | 265 87 100 150 65 Remotely . | . . . . . Salvage Created 470 | . 163 180 127 . Parts 33 | . 15 11 7 . Haulers Intercepted 1 | . 1 . . . Recyclers Shooed 3 | . . . 3 . Parts Field Recycled . | . . . . . Retrieved Matter . | . . . . . Parts Self-Destructed . | . . . . . Prevented . | . . . . . Kills | -11 -10 -9 -9 -9 ------- Run | Scr Mat Mat Min Exi Combat Hostiles Destroyed 14 | . 5 6 3 . Melee 1 | . . 1 . . Guns 7 | . 5 2 . . AOE 6 | . . 3 3 . Classes Destroyed 5 | . 4 . 1 . Worker 1 | . . . 1 . Builder 2 | . 1 . 1 . Hauler 1 | . 1 . . . Swarmer 7 | . 4 3 . . Grunt 7 | . 1 3 3 . Best Kill Streak 4 | . 4 3 4 . Combat Bots Only 4 | . 4 3 3 . Max Kills in Single Turn 2 | . 1 2 2 . Gunslinging . | . . . . . Exploded 2 | . . 2 2 . Melee 1 | . . 1 . . Uniques/NPCs Destroyed . | . . . . . Combat | -11 -10 -9 -9 -9 -------- Run | Scr Mat Mat Min Exi Damage Taken 2320 | . 301 884 199 936 Core 446 | . 30 334 20 62 Absorbed by Shields . | . . . . . Core Remaining (%) 94 | 100 88 . . . Volleys Fired 65 | . 29 21 15 . Largest 2 | . 2 2 1 . Hottest 56 | . 40 56 39 . Shots Fired 101 | . 58 28 15 . Gun 95 | . 58 24 13 . Cannon 4 | . . 4 . . Launcher 2 | . . . 2 . Special . | . . . . . Kinetic 95 | . 58 24 13 . Thermal . | . . . . . Explosive 2 | . . . 2 . Electromagnetic 4 | . . 4 . . Robot Hit Streak 13 | . 13 8 6 . Robot Miss Streak 6 | . 6 3 1 . Penetration Max . | . . . . . Secondary Targets 2 | . 2 . . . Max Gunslinging Chain 1 | . 1 . . . Shots Hit Robots 64 | . 33 18 11 2 Core Hits 34 | . 12 14 8 . Critical Hits . | . . . . . Critical Kills . | . . . . . Critical Parts Destroyed . | . . . . . Melee Attacks 2 | . . . . 2 Impact 2 | . . . . 2 Slashing . | . . . . . Piercing . | . . . . . Sneak Attacks 1 | . . . . 1 Combat Hostiles . | . . . . . Follow-up Attacks . | . . . . . Damage Inflicted 1251 | . 340 416 362 133 Guns 592 | . 340 151 101 . Cannons 75 | . . 75 . . Explosions 406 | . . 145 261 . Melee 133 | . . . . 133 Ramming 45 | . . 45 . . Kinetic 592 | . 340 151 101 . Thermal 145 | . . 145 . . Explosive 261 | . . . 261 . Electromagnetic 75 | . . 75 . . Impact 133 | . . . . 133 Slashing . | . . . . . Piercing . | . . . . . Highest Corruption 4 | . . 4 4 4 Average Corruption 4 | . . 4 4 4 Corruption Purged . | . . . . . Effects 21 | . . 4 10 7 Message Errors 5 | . . 1 2 2 Matter Fused 6 | . . 1 4 1 Heat Flow Errors 3 | . . 1 . 2 Energy Discharges 3 | . . 1 1 1 Data Loss (minor) 2 | . . . 2 . Targeting Errors 2 | . . . 1 1 Overload Shots . | . . . . . Overflow Damage 113 | . . 42 2 69 Projectiles . | . . . . . Explosions 44 | . . 42 2 . Melee 69 | . . . . 69 Knockbacks 1 | . . . . 1 Impact 1 | . . . . 1 Kinetic . | . . . . . Secondary . | . . . . . Self-Inflicted Damage 123 | . . 75 48 . Shots 4 | . . 2 2 . Rammed 11 | . . 11 . . Targets Rammed 17 | . . 17 . . Kicked 6 | . . 6 . . Crushed . | . . . . . Highest Temperature 226 | . . 154 4 226 Average Temperature 67 | . . 34 2 109 Received Heat Transfer 399 | . . 255 84 60 Siege Activations . | . . . . . Robots Corrupted . | . . . . . Combat Hostiles . | . . . . . Parts Fried . | . . . . . Impact Corruptions 2 | . . . . 2 Robots Melted . | . . . . . Combat Hostiles . | . . . . . Parts Melted 1 | . . 1 . . Heat Transferred 200 | . . 200 . . Parts Sabotaged . | . . . . . Parts Stolen . | . . . . . Parts Stripped . | . . . . . Power Chain Reactions 2 | . . 2 . . Missiles Intercepted . | . . . . . Alert | -11 -10 -9 -9 -9 ------- Run | Scr Mat Mat Min Exi Peak Influence 298 | . 162 298 143 . Initial 68 | . . 68 43 . Average 120 | . 106 168 102 . Maximum Alert Level 1 | . . 1 . . Low Security (%) 89 | 100 100 69 100 . Level 1 10 | . . 30 . . Level 2 . | . . . . . Level 3 . | . . . . . Level 4 . | . . . . . Level 5 . | . . . . . High Security . | . . . . . Max Security . | . . . . . Squads Dispatched 8 | . 1 5 2 . Investigation 3 | . . 2 1 . Extermination . | . . . . . Reinforcement 5 | . 1 3 1 . Assault . | . . . . . Garrison . | . . . . . Intercept . | . . . . . Construction Impeded 1 | . . . 1 . Haulers Reinforced . | . . . . . Stealth | -11 -10 -9 -9 -9 --------- Run | Scr Mat Mat Min Exi Distress Signals 3 | . 2 1 . . Communications Jammed . | . . . . . Distress Signals . | . . . . . Times Spotted 56 | . 13 21 5 17 Peak Tracking Total 12 | . 4 8 3 12 Tactical Retreats 8 | . . 3 2 3 Traps | -11 -10 -9 -9 -9 ------- Run | Scr Mat Mat Min Exi Traps Triggered 2 | . . 2 . . Indirectly . | . . . . . Trap Hack Attempts . | . . . . . Triggered . | . . . . . Disarmed . | . . . . . Reprogrammed . | . . . . . Reused . | . . . . . Traps Extracted . | . . . . . Installed . | . . . . . Triggered . | . . . . . Machines | -11 -10 -9 -9 -9 ---------- Run | Scr Mat Mat Min Exi Machines Disabled . | . . . . . Max in Single Turn . | . . . . . Machines Sabotaged . | . . . . . Garrisons Compromised . | . . . . . Overloaded Fab Kills . | . . . . . Fab Network Shutdowns . | . . . . . Hacking | -11 -10 -9 -9 -9 --------- Run | Scr Mat Mat Min Exi Machines Accessed 4 | . 1 2 1 . Terminals 1 | . 1 . . . Fabricators . | . . . . . Repair Stations 1 | . . 1 . . Recycling Units . | . . . . . Scanalyzers 1 | . . 1 . . Garrison Access . | . . . . . Total Hacks 7 | . 1 5 1 . Successful 7 | . 1 5 1 . Failed . | . . . . . Catastrophic . | . . . . . Database Lockouts . | . . . . . Manual . | . . . . . Terminals 1 | . 1 . . . Fabricators . | . . . . . Repair Stations 1 | . . 1 . . Recycling Units . | . . . . . Scanalyzers 4 | . . 4 . . Garrison Access . | . . . . . Terminal Hacks 2 | . 1 . 1 . Open Door 1 | . . . 1 . Zone Layout 1 | . 1 . . . Fabricator Hacks . | . . . . . Repair Station Hacks 1 | . . 1 . . Scan Component 1 | . . 1 . . Recycling Unit Hacks . | . . . . . Scanalyzer 4 | . . 4 . . Insert Component 2 | . . 2 . . Analyze 2 | . . 2 . . Garrison Access Hacks . | . . . . . Unauthorized Hacks . | . . . . . Terminals . | . . . . . Fabricators . | . . . . . Repair Stations . | . . . . . Recycling Units . | . . . . . Scanalyzers . | . . . . . Garrison Access . | . . . . . Data Cores Recovered . | . . . . . Used . | . . . . . Hacking Detections 1 | . . 1 . . Full Trace Events . | . . . . . Feedback Events . | . . . . . Feedback Blocked . | . . . . . Robot Schematics Acquired . | . . . . . Robots Built . | . . . . . Matter . | . . . . . Time . | . . . . . Total Robot Build Rating . | . . . . . Part Schematics Acquired 2 | . . 2 . . Parts Built . | . . . . . Matter . | . . . . . Time . | . . . . . Total Part Build Rating . | . . . . . Parts Repaired . | . . . . . Time . | . . . . . Parts Recycled . | . . . . . Recycled Matter . | . . . . . Retrieved Matter . | . . . . . Retrieved Components . | . . . . . Parts Scanalyzed 2 | . . 2 . . Part Schematics Acquired 2 | . . 2 . . Parts Damaged . | . . . . . Bothacking | -11 -10 -9 -9 -9 ------------ Run | Scr Mat Mat Min Exi Used RIF Installer . | . . . . . Robots Hacked . | . . . . . Non-combat . | . . . . . Combat . | . . . . . Robot Hacks Applied . | . . . . . Relay Couplers Released . | . . . . . Robots Rewired . | . . . . . Allies Hacked . | . . . . . Hacks Repelled . | . . . . . Allies | -11 -10 -9 -9 -9 -------- Run | Scr Mat Mat Min Exi Total Allies 3 | . . . 3 . Largest Group 3 | . . . 3 2 Highest-Rated Group 40 | . . . 40 24 Highest-Rated Ally 16 | . . . 16 16 Total Orders . | . . . . . Ally Attacks 15 | . . . . 15 Total Damage 158 | . . . . 158 Kills 2 | . . . . 2 Allies Corrupted . | . . . . . Allies Melted . | . . . . . Intel | -11 -10 -9 -9 -9 ------- Run | Scr Mat Mat Min Exi Robot Analysis Total . | . . . . . Derelict Logs Recovered 2 | . . . 2 . Drone Launches . | . . . . . Drone Recoveries . | . . . . . Exploration | -11 -10 -9 -9 -9 ------------- Run | Scr Mat Mat Min Exi Turns Passed 1518 | 64 354 411 384 305 Spaces Moved 967 | 48 220 278 239 182 Core 122 | 14 . 107 . 1 Treads 362 | 6 . . 175 181 Legs 402 | 28 220 154 . . Wheels 77 | . . 17 60 . Hover 4 | . . . 4 . Flight . | . . . . . Fastest Speed 50 | 50 120 90 65 160 Average Speed 129 | 104 120 110 141 162 Slowest Speed 550 | 160 120 120 160 550 Overloaded Moves . | . . . . . Propulsion Burnouts . | . . . . . Robots Hopped . | . . . . . Cave-ins Triggered . | . . . . . Exploration Rate (%) 33 | 5 41 38 46 39 Regions Visited 4 Branch Regions 2 Pre-discovered Areas . | . . . . . Known Exits Taken . | . . . . . Unknown Exits Taken 4 | 1 1 1 1 . Scrap Searched 2 | . . . 2 . Spaces Dug . | . . . . . Terrain Destroyed 43 | . . 7 36 . Melee . | . . . . . Projectile . | . . . . . AOE 43 | . . 7 36 . Terrain Rammed . | . . . . . Walls Destroyed . | . . . . . Machines Disabled . | . . . . . Actions | -11 -10 -9 -9 -9 --------- Run | Scr Mat Mat Min Exi Total 1136 | 60 258 353 273 192 Wait 30 | . 9 21 . . Move 964 | 47 219 278 238 182 Hop . | . . . . . Pick Up 26 | 6 1 8 6 5 Fast Attach 8 | 3 . 1 4 . Attach 11 | 3 . 4 4 . Detach . | . . . . . Swap 6 | 1 . 2 2 1 Drop 8 | . . 2 4 2 Fire 65 | . 29 21 15 . Melee 2 | . . . . 2 Ram 4 | . . 4 . . Kick 12 | . . 12 . . Crush . | . . . . . Escape Stasis . | . . . . . Rewire . | . . . . . Trap . | . . . . . Miscellaneous . | . . . . . Route ------- -11/Scrapyard -10/Materials -9/Materials -9/Mines -9/Exiles (discovered 1 exit: [*Min]) History --------- Turn | Location | Event 9 | -11/Scrapyard | Discovered new exit (range 15) 65 | -11/Scrapyard | Entered Materials 232 | -10/Materials | Discovered new exit (range 12) 313 | -10/Materials | Build established: Mutant 419 | -10/Materials | Entered another Materials area 419 | -9/Materials | Evolved 2 slots: Propulsion x1, Weapon x1 680 | -9/Materials | Core integrity fell below 50% 716 | -9/Materials | Lost 7 parts (2p3n2w) 823 | -9/Materials | Discovered new exit (range 5) 828 | -9/Materials | Core integrity fell below 20% 830 | -9/Materials | Entered Mines 866 | -9/Mines | Learned 2 Materials zone layouts 882 | -9/Mines | Met a Derelict shopkeep closing up shop 884 | -9/Mines | Met a Derelict bent on vengeance 1147 | -9/Mines | Learned Materials stockpile data 1149 | -9/Mines | Assisted by bots powering up and referring to "LRC-V3" 1206 | -9/Mines | Deemed a non-threat by the Exiles lab entrance 1208 | -9/Mines | Discovered new exit (range 5) 1214 | -9/Mines | Entered Exiles 1214 | -9/Exiles | Accompanied by 2 allies 1248 | -9/Exiles | Discovered new exit (range 14) 1304 | -9/Exiles | Met 8R-AWN 1336 | -9/Exiles | Met EX-HEX 1484 | -9/Exiles | Attacked by the Exiles 1519 | -9/Exiles | Destroyed by DAS Turret with DAS Cannon Last Messages --------------- 01497_ Destroyed Corruption Screen. 01497_ Machine disabled. 01498_ Mercenary 2a system corrupted by crushing effect. 01499_ Mercenary 2a destroyed. 01503_ as-05032 destroyed. 01503_ Lgt. Treads destroyed. 01505_ Imp. Medium Armor Plating destroyed. 01506_ Trooper 2b destroyed. 01507_ Hvy. Rocket Launcher destroyed. 01510_ Sneak attack on EX-BIN. 01510_ System corrupted: Hammer targeting data glitched. 01510_ Destroyed EX Chip 1. 01510_ Destroyed Mak. Hover Unit. 01510_ EX-BIN system corrupted by crushing effect. 01510_ EX-BIN knocked back. 01511_ Hammer destroyed. 01513_ Autogun destroyed. 01513_ Lgt. Treads destroyed. 01517_ Ion Engine destroyed. 01517_ Lgt. Treads destroyed. Map ----- +----------------------------------------------------+ | ??????????????????? ? ???????????? | | ??????????????????? ?????????? | | ?????????????????? ??????????"" | | ????????????????? ????????????"" | | ???????????????? ?????????????#""" | | ???????????????" ""?????????????#""" | | ??????????????? """?????????????#"""" | | ??????????????" ""????????????##"" | | ?????????????? ########??####"""" | | ?????????????"" ## ####""" | | ?????????????" """" | | ??????????????" % = | | ?????????????"""" *%= | | ?????????????# % | | ?????????????#" ! "" | | ??????????????"""" !% ""## ##""" " " | | ?????????????#"" = ""#### ######""" " | | ?????????????#" """"##??# #????###""" | | ?????????????#""" a """#??## ####???#### | | ??????????????# ""##??# " #??????? | | ??????????????#"" a """##???#" #??????? | | ??????????????##""" a a ##????#" "#??????? | | ????????????????#"""" ##?????#!!""!"#??????? | | ????????????????### a #??????########??????? | | ??????????????????##### a ##????????????????????? | | ??????????????????????## @ #?????????????????????? | | ???????????????????????# #?????????????????????? | | ???????????????????????# ;#????????????????????? | | ???????????????????????# c##????????????????????? | | ???????????????????????# #?????????????????????? | | ???????????????????????# #?????????????????????? | | ???????????????????????# #?????????????????????? | | ???????????????????????# #?????????????????????? | | ???????????????????????# #?????????????????????? | | ???????????????????????# #?????????????????????? | | ???????????????????????# #?????????????????????? | | ???????????????????????"c "?????????????????????? | | ???????????????????????c ?????????????????????? | | ??????????????????????? ?????????????????????? | | ??????????????????????? ?????????????????????? | | ??????????????????????? ?????????????????????? | | ?????????????????????????????????????????????????? | | ?????????????????????????????????????????????????? | | ?????????????????????????????????????????????????? | | ?????????????????????????????????????????????????? | | ?????????????????????????????????????????????????? | | ?????????????????????????????????????????????????? | | ?????????????????????????????????????????????????? | | ?????????????????????????????????????????????????? | | ?????????????????????????????????????????????????? | +----------------------------------------------------+ Best States ------------- Heat Dissipation 28 Energy Generation 10 Energy Capacity 250 Matter Stores 300 Matter Capacity 300 Sight Range 16 Terrain Scan Density 10 Armor Coverage 225 Evasion (%) 52 Recoil Reduction 3 Item Schematics ----------------- Lgt. Treads | -9/Materials | Scanalyzed Hcp. Battery | -9/Materials | Scanalyzed Robot Schematics ------------------ None Fabricated ------------ Nothing Alien Tech Used ----------------- None Achievements -------------- None Challenges ------------ None Game ------ Seed ShadingAlertRegenerator Manual? 0 Play Time 00:23:14 Cumulative 15.3 hours Start 2022.02.19 @ 02:21:56 End 2022.02.19 @ 02:41:55 Sessions 1 Manual Loads 0 Difficulty Rogue Special Mode None Game No. 22 Rogue 1 Adventurer 21 Explorer 0 Win Type - Total 0 Types 0/0/0/0/0/0/0/0/0 Lore% 18 Gallery% 17 Achievement% 14 Wizard Run 0 Options --------- ASCII 0 Keyboard 0 Movement Mouse Keybinds 0 Fullscreen 1 Font 16/Proggy Map View 76x50 Tactical HUD 1 Map Filters NONE Filters NONE Steam 1 RUN: 8c3d7b08-a8f6-4378-9ae6-472aa2510dfd